fUSD/lending_fUSD_20241222
["ID","MTS","AMOUNT","RATE_DAILY","PERIOD"]
[346279549,1734863438810,-500.0,0.00019178,2]
[346279550,1734863438820,-500.0,0.00019178,2]
[346279551,1734863438829,-500.0,0.00019178,2]
[346279552,1734863438838,-500.0,0.00019178,2]
[346279553,1734863438849,-500.0,0.00019178,2]
[346279554,1734863438859,-500.0,0.00019178,2]
[346279555,1734863438869,-1005.11,0.00019178,2]
[346279556,1734863438879,-531.09,0.00019178,2]
[346279557,1734863438888,-882.22,0.00019178,2]
[346279558,1734863438899,-1250.09,0.00019178,2]
[346279559,1734863438908,-500.0,0.00019178,2]
[346279560,1734863438919,-500.0,0.00019178,2]
[346279561,1734863438929,-500.0,0.00019178,2]
[346279562,1734863438938,-2003.81,0.00019178,2]
[346279563,1734863438948,-500.0,0.00019178,2]
[346279564,1734863438958,-500.0,0.00019178,2]
[346279565,1734863438969,-5762.88,0.00019178,2]
[346279566,1734863439160,-163.755261,0.00019178,2]
[346279567,1734863439170,-694.53,0.00019178,2]
[346279568,1734863439179,-500.0,0.00019178,2]
[346279569,1734863439189,-609.02,0.00019178,2]
[346279570,1734863439199,-500.0,0.00019178,2]
[346279571,1734863439208,-1241.35,0.00019178,2]
[346279572,1734863439218,-2200.19,0.00019178,2]
[346279574,1734863439228,-500.0,0.00019178,2]
[346279575,1734863439237,-566.76,0.00019178,2]
[346279576,1734863439247,-2111.85,0.00019178,2]
[346279577,1734863439256,-2163.54,0.00019178,2]
[346279578,1734863439265,-2199.24,0.00019178,2]
[346279579,1734863439274,-500.0,0.00019178,2]
[346279580,1734863439283,-500.0,0.00019178,2]
[346279581,1734863439292,-500.0,0.00019178,2]
[346279582,1734863439301,-500.0,0.00019178,2]
[346279583,1734863439310,-707.34,0.00019178,2]
[346279584,1734863439319,-500.0,0.00019178,2]
[346279585,1734863439328,-5696.36,0.00019178,2]
[346279586,1734863439338,-500.0,0.00019178,2]
[346279587,1734863439347,-554.96,0.00019178,2]
[346279588,1734863439356,-500.0,0.00019178,2]
[346279589,1734863439366,-500.0,0.00019178,2]
[346279590,1734863439375,-963.17,0.00019178,2]
[346279591,1734863439384,-8488.9,0.00019178,2]
[346279592,1734863439394,-1211.31,0.00019178,2]
[346279593,1734863439405,-500.0,0.00019178,2]
[346279595,1734863439415,-500.0,0.00019178,2]
[346279597,1734863439424,-2065.92,0.00019178,2]
[346279599,1734863439433,-219.916586,0.00019178,2]
[346279601,1734863439443,-500.0,0.00019178,2]
[346279603,1734863439452,-500.0,0.00019178,2]
[346279604,1734863439463,-690.32,0.00019178,2]
[346279606,1734863439473,-1999.93,0.00019178,2]
[346279607,1734863439483,-1488.57,0.00019178,2]
[346279608,1734863439493,-500.0,0.00019178,2]
[346279609,1734863439503,-10800.92,0.00019178,2]
[346279610,1734863439516,-3003.35,0.00019178,2]
[346279611,1734863439526,-500.0,0.00019178,2]
[346279612,1734863439535,-500.0,0.00019178,2]
[346279613,1734863439545,-500.0,0.00019178,2]
[346279614,1734863439555,-622.41,0.00019178,2]
[346279615,1734863439565,-924.4,0.00019178,2]
[346279616,1734863439575,-2201.47,0.00019178,2]
[346279617,1734863439584,-833.05,0.00019178,2]
[346279618,1734863439593,-500.0,0.00019178,2]
[346279619,1734863439603,-4207.57,0.00019178,2]
[346279620,1734863439613,-500.0,0.00019178,2]
[346279621,1734863439623,-500.0,0.00019178,2]
[346279622,1734863439633,-500.0,0.00019178,2]
[346279623,1734863439643,-500.0,0.00019178,2]
[346279624,1734863439652,-500.0,0.00019178,2]
[346279625,1734863439662,-2605.42,0.00019178,2]
[346279626,1734863439672,-500.0,0.00019178,2]
[346279627,1734863439682,-3428.85,0.00019178,2]
[346279628,1734863439692,-500.0,0.00019178,2]
[346279629,1734863439703,-647.86,0.00019178,2]
[346279630,1734863439713,-500.0,0.00019178,2]
[346279631,1734863439723,-500.0,0.00019178,2]
[346279632,1734863439733,-1859.35,0.00019178,2]
[346279633,1734863439743,-500.0,0.00019178,2]
[346279634,1734863439752,-500.0,0.00019178,2]
[346279635,1734863439762,-289.158773,0.00019178,2]
[346279636,1734863439775,-500.0,0.00019178,2]
[346279637,1734863439784,-500.0,0.00019178,2]
[346279638,1734863439795,-500.0,0.00019178,2]
[346279639,1734863439804,-500.0,0.00019178,2]
[346279640,1734863439815,-500.0,0.00019178,2]
[346279641,1734863439826,-500.0,0.00019178,2]
[346279642,1734863439837,-646.4,0.00019178,2]
[346279643,1734863439847,-500.0,0.00019178,2]
[346279644,1734863439858,-864.92,0.00019178,2]
[346279645,1734863439868,-521.75,0.00019178,2]
[346279646,1734863439879,-500.0,0.00019178,2]
[346279647,1734863439888,-500.0,0.00019178,2]
[346279648,1734863439897,-399.41,0.00019178,2]
[346279649,1734863439907,-213.88,0.00019178,2]
[346279650,1734863439919,-615.18,0.00019178,2]
[346279651,1734863439928,-500.0,0.00019178,2]
[346279652,1734863439938,-500.0,0.00019178,2]
[346279653,1734863439947,-500.0,0.00019178,2]
[346279654,1734863439956,-500.0,0.00019178,2]
[346279655,1734863439965,-756.63,0.00019178,2]
[346279656,1734863439975,-500.0,0.00019178,2]
[346279657,1734863439984,-17340.36,0.00019178,2]
[346279658,1734863439993,-940.52,0.00019178,2]
[346279659,1734863440003,-500.0,0.00019178,2]
[346279660,1734863440012,-500.0,0.00019178,2]
[346279661,1734863440022,-877.88,0.00019178,2]
[346279662,1734863440032,-586.25,0.00019178,2]
[346279663,1734863440041,-500.0,0.00019178,2]
[346279664,1734863440052,-1053.77,0.00019178,2]
[346279665,1734863440062,-894.89,0.0001925,2]
[346279666,1734863440071,-155.81,0.00019308,2]
[346279667,1734863440081,-26257.0,0.00019315,2]
[346279668,1734863440090,-500.0,0.00019336,2]
[346279669,1734863440100,-500.0,0.00019336,2]
[346279670,1734863440109,-1000.0,0.00019341,2]
[346279671,1734863440118,-123066.6887,0.00019352,2]
[346279672,1734863440128,-377.51170326,0.00019437,2]
[346279673,1734863440138,-155.12,0.00019441,2]
[346279674,1734863440147,-507.27,0.00019451,2]
[346279675,1734863440157,-500.0,0.00019451,2]
[346279676,1734863440166,-500.0,0.00019451,2]
[346279677,1734863440176,-328.90126322,0.00019451,2]
[346279678,1734863440185,-500.0,0.00019451,2]
[346279679,1734863440196,-500.0,0.00019451,2]
[346279680,1734863440205,-607.42,0.00019451,2]
[346279681,1734863440215,-500.0,0.00019451,2]
[346279682,1734863440224,-658.61,0.00019451,2]
[346279683,1734863440234,-523.73,0.00019451,2]
[346279684,1734863440243,-500.0,0.00019451,2]
[346279685,1734863440252,-500.0,0.00019451,2]
[346279686,1734863440262,-1185.06,0.00019451,2]
[346279687,1734863440271,-500.0,0.00019451,2]
[346279688,1734863440281,-500.0,0.00019451,2]
[346279689,1734863440290,-500.0,0.00019451,2]
[346279690,1734863440299,-1122.75,0.00019451,2]
[346279691,1734863440309,-4811.8,0.00019451,2]
[346279692,1734863440318,-500.0,0.00019451,2]
[346279693,1734863440327,-982.94,0.00019451,2]
[346279694,1734863440336,-500.0,0.00019451,2]
[346279695,1734863440345,-7888.81,0.00019451,2]
[346279696,1734863440356,-500.0,0.00019451,2]
[346279697,1734863440366,-891.44,0.00019451,2]
[346279698,1734863440375,-500.0,0.00019451,2]
[346279699,1734863440387,-582.91,0.00019451,2]
[346279700,1734863440396,-500.0,0.00019451,2]
[346279701,1734863440405,-500.0,0.00019451,2]
[346279702,1734863440415,-500.0,0.00019451,2]
[346279703,1734863440424,-500.0,0.00019451,2]
[346279704,1734863440434,-721.07,0.00019451,2]
[346279705,1734863440443,-500.0,0.00019451,2]
[346279706,1734863440452,-19797.69,0.00019451,2]
[346279707,1734863440462,-500.0,0.00019451,2]
[346279708,1734863440472,-500.0,0.00019451,2]
[346279709,1734863440481,-500.0,0.00019451,2]
[346279710,1734863440491,-500.0,0.00019451,2]
[346279711,1734863440500,-989.05,0.00019451,2]
[346279712,1734863440509,-500.0,0.00019451,2]
[346279713,1734863440522,-500.0,0.00019451,2]
[346279714,1734863440532,-1105.12,0.00019451,2]
[346279715,1734863440541,-691.73,0.00019451,2]
[346279716,1734863440550,-508.80253627,0.00019451,2]
[346279717,1734863440559,-500.0,0.00019451,2]
[346279718,1734863440568,-5607.45,0.00019451,2]
[346279719,1734863440578,-500.0,0.00019451,2]
[346279720,1734863440588,-1008.65,0.00019451,2]
[346279721,1734863440598,-500.0,0.00019451,2]
[346279722,1734863440607,-500.0,0.00019451,2]
[346279723,1734863440616,-500.0,0.00019451,2]
[346279724,1734863440627,-1000.0,0.00019451,2]
[346279725,1734863440637,-639.58,0.00019451,2]
[346279726,1734863440646,-169.94223279,0.00019451,2]
[346279727,1734863440656,-500.0,0.00019451,2]
[346279728,1734863440665,-500.0,0.00019451,2]
[346279729,1734863440675,-500.0,0.00019451,2]
[346279730,1734863440685,-500.0,0.00019451,2]
[346279731,1734863440694,-1088.07,0.00019451,2]
[346279732,1734863440703,-500.0,0.00019452,2]
[346279733,1734863440713,-500.0,0.00019452,2]
[346279734,1734863440723,-500.0,0.00019452,2]
[346279735,1734863440732,-500.0,0.00019452,2]
[346279736,1734863440741,-500.0,0.00019452,2]
[346279737,1734863440751,-301.35420465,0.00019452,2]
[346279738,1734863440760,-501.14,0.00019452,2]
[346279739,1734863440770,-500.0,0.00019452,2]
[346279740,1734863440779,-742.18,0.00019452,2]
[346279741,1734863440789,-500.0,0.00019452,2]
[346279742,1734863440799,-718.67,0.00019452,2]
[346279743,1734863440808,-500.0,0.00019452,2]
[346279744,1734863440817,-500.0,0.00019452,2]
[346279745,1734863440826,-500.0,0.00019452,2]
[346279746,1734863440836,-500.0,0.00019452,2]
[346279747,1734863440845,-500.0,0.00019452,2]
[346279748,1734863440854,-500.0,0.00019452,2]
[346279749,1734863440863,-273.545716,0.00019452,2]
[346279750,1734863440872,-500.0,0.00019452,2]
[346279751,1734863440883,-382.018238,0.00019452,2]
[346279752,1734863440892,-500.0,0.00019452,2]
[346279753,1734863440901,-500.0,0.00019452,2]
[346279754,1734863440910,-500.0,0.00019452,2]
[346279755,1734863440920,-500.0,0.00019452,2]
[346279756,1734863440929,-570.83,0.00019452,2]
[346279757,1734863440938,-500.0,0.00019452,2]
[346279758,1734863440947,-500.0,0.00019452,2]
[346279759,1734863440957,-500.0,0.00019452,2]
[346279760,1734863440966,-184.79182186,0.00019452,2]
[346279761,1734863440976,-500.0,0.00019452,2]
[346279762,1734863440985,-500.0,0.00019452,2]
[346279763,1734863440995,-500.0,0.00019452,2]
[346279764,1734863441004,-500.0,0.00019452,2]
[346279765,1734863441013,-500.0,0.00019452,2]
[346279766,1734863441023,-500.0,0.00019452,2]
[346279767,1734863441033,-500.0,0.00019452,2]
[346279768,1734863441042,-500.0,0.00019452,2]
[346279769,1734863441052,-2607.3,0.00019452,2]
[346279770,1734863441061,-500.0,0.00019452,2]
[346279771,1734863441070,-1785.82,0.00019452,2]
[346279772,1734863441080,-510.21,0.00019452,2]
[346279773,1734863441089,-929.37,0.00019452,2]
[346279774,1734863441098,-764.34,0.00019452,2]
[346279775,1734863441107,-514.33,0.00019452,2]
[346279776,1734863441116,-500.0,0.00019452,2]
[346279777,1734863441125,-500.0,0.00019452,2]
[346279778,1734863441137,-500.0,0.00019452,2]
[346279779,1734863441146,-500.0,0.00019452,2]
[346279780,1734863441155,-8312.65,0.00019452,2]
[346279781,1734863441165,-533.68,0.00019452,2]
[346279782,1734863441175,-1059.68,0.00019452,2]
[346279783,1734863441184,-562.44,0.00019452,2]
[346279784,1734863441193,-500.0,0.00019452,2]
[346279785,1734863441203,-151.917224,0.00019452,2]
[346279786,1734863441212,-500.0,0.00019452,2]
[346279787,1734863441221,-500.0,0.00019452,2]
[346279788,1734863441231,-500.0,0.00019452,2]
[346279789,1734863441240,-1082.01,0.00019452,2]
[346279790,1734863441249,-500.0,0.00019452,2]
[346279791,1734863441259,-500.0,0.00019452,2]
[346279792,1734863441268,-500.0,0.00019452,2]
[346279793,1734863441277,-1595.23,0.00019452,2]
[346279794,1734863441286,-500.0,0.00019452,2]
[346279795,1734863441297,-500.0,0.00019452,2]
[346279796,1734863441307,-500.0,0.00019452,2]
[346279797,1734863441317,-500.0,0.00019452,2]
[346279798,1734863441326,-1005.11,0.00019452,2]
[346279799,1734863441335,-531.09,0.00019452,2]
[346279800,1734863441345,-882.22,0.00019452,2]
[346279801,1734863441354,-1250.09,0.00019452,2]
[346279802,1734863441363,-641.64254096,0.00019452,2]
[346279803,1734863441372,-500.0,0.00019452,2]
[346279804,1734863441384,-500.0,0.00019452,2]
[346279805,1734863441393,-2003.81,0.00019452,2]
[346279806,1734863441403,-500.0,0.00019452,2]
[346279807,1734863441412,-5762.88,0.00019452,2]
[346279808,1734863441421,-694.53,0.00019452,2]
[346279809,1734863441431,-609.02,0.00019452,2]
[346279810,1734863441440,-500.0,0.00019452,2]
[346279811,1734863441450,-1241.35,0.00019452,2]
[346279812,1734863441460,-2200.19,0.00019452,2]
[346279813,1734863441469,-566.76,0.00019452,2]
[346279814,1734863441479,-2111.85,0.00019452,2]
[346279815,1734863441491,-2163.54,0.00019452,2]
[346279816,1734863441500,-2199.24,0.00019452,2]
[346279817,1734863441510,-500.0,0.00019452,2]
[346279818,1734863441522,-500.0,0.00019452,2]
[346279819,1734863441531,-500.0,0.00019452,2]
[346279820,1734863441540,-707.34,0.00019452,2]
[346279821,1734863441550,-551.77954079,0.00019452,2]
[346279822,1734863441561,-5696.36,0.00019452,2]
[346279823,1734863441570,-500.0,0.00019452,2]
[346279824,1734863441579,-554.96,0.00019452,2]
[346279825,1734863441590,-500.0,0.00019452,2]
[346279826,1734863441599,-511.71863602,0.00019452,2]
[346279827,1734863441608,-963.17,0.00019452,2]
[346279828,1734863441617,-8488.9,0.00019452,2]
[346279829,1734863441627,-1211.31,0.00019452,2]
[346279830,1734863441639,-500.0,0.00019452,2]
[346279831,1734863441648,-2065.92,0.00019452,2]
[346279832,1734863441657,-500.0,0.00019452,2]
[346279833,1734863441667,-500.0,0.00019452,2]
[346279834,1734863441677,-690.32,0.00019452,2]
[346279835,1734863441687,-1999.93,0.00019452,2]
[346279836,1734863441696,-1488.57,0.00019452,2]
[346279837,1734863441706,-500.0,0.00019452,2]
[346279838,1734863441716,-10800.92,0.00019452,2]
[346279839,1734863441725,-3003.35,0.00019452,2]
[346279840,1734863441735,-500.0,0.00019452,2]
[346279841,1734863441745,-500.0,0.00019452,2]
[346279842,1734863441755,-500.0,0.00019452,2]
[346279843,1734863441764,-622.41,0.00019452,2]
[346279844,1734863441774,-924.4,0.00019452,2]
[346279845,1734863441783,-2201.47,0.00019452,2]
[346279846,1734863441792,-833.05,0.00019452,2]
[346279847,1734863441802,-500.0,0.00019452,2]
[346279848,1734863441811,-4207.57,0.00019452,2]
[346279849,1734863441821,-500.0,0.00019452,2]
[346279850,1734863441830,-500.0,0.00019452,2]
[346279851,1734863441839,-500.0,0.00019452,2]
[346279852,1734863441849,-500.0,0.00019452,2]
[346279853,1734863441858,-500.0,0.00019452,2]
[346279854,1734863441867,-2605.42,0.00019452,2]
[346279855,1734863441877,-500.0,0.00019452,2]
[346279856,1734863441888,-3428.85,0.00019452,2]
[346279857,1734863441898,-500.0,0.00019452,2]
[346279858,1734863441907,-647.86,0.00019452,2]
[346279859,1734863441916,-500.0,0.00019452,2]
[346279860,1734863441926,-1859.35,0.00019452,2]
[346279861,1734863441935,-500.0,0.00019452,2]
[346279862,1734863441945,-500.0,0.00019452,2]
[346279863,1734863441954,-500.0,0.00019452,2]
[346279864,1734863441963,-500.0,0.00019452,2]
[346279865,1734863441972,-500.0,0.00019452,2]
[346279866,1734863441981,-646.4,0.00019452,2]
[346279867,1734863441991,-500.0,0.00019452,2]
[346279868,1734863442000,-864.92,0.00019452,2]
[346279869,1734863442010,-521.75,0.00019452,2]
[346279870,1734863442019,-500.0,0.00019452,2]
[346279871,1734863442029,-500.0,0.00019452,2]
[346279872,1734863442038,-615.18,0.00019452,2]
[346279873,1734863442047,-500.0,0.00019452,2]
[346279874,1734863442057,-500.0,0.00019452,2]
[346279875,1734863442066,-756.63,0.00019452,2]
[346279876,1734863442076,-500.0,0.00019452,2]
[346279877,1734863442085,-17340.36,0.00019452,2]
[346279878,1734863442094,-940.52,0.00019452,2]
[346279879,1734863442104,-500.0,0.00019452,2]
[346279880,1734863442114,-500.0,0.00019452,2]
[346279881,1734863442124,-877.88,0.00019452,2]
[346279882,1734863442134,-586.25,0.00019452,2]
[346279883,1734863442143,-500.0,0.00019452,2]
[346279884,1734863442152,-1053.77,0.00019452,2]
[346279885,1734863442162,-377.51170326,0.00019465,2]
[346279886,1734863442171,-150.0,0.00019493,4]
[346279887,1734863442181,-1027.69052815,0.000196,2]
[346279888,1734863442190,-1035.73136982,0.000196,2]
[346279889,1734863442199,-308.58,0.00019651,2]
[346279890,1734863442208,-507.27,0.00019725,2]
[346279891,1734863442217,-500.0,0.00019725,2]
[346279892,1734863442227,-500.0,0.00019725,2]
[346279893,1734863442236,-500.0,0.00019725,2]
[346279894,1734863442245,-500.0,0.00019725,2]
[346279895,1734863442254,-607.42,0.00019725,2]
[346279896,1734863442263,-500.0,0.00019725,2]
[346279897,1734863442272,-658.61,0.00019725,2]
[346279898,1734863442281,-523.73,0.00019725,2]
[346279899,1734863442291,-500.0,0.00019725,2]
[346279900,1734863442300,-1185.06,0.00019725,2]
[346279901,1734863442310,-500.0,0.00019725,2]
[346279903,1734863442319,-500.0,0.00019725,2]
[346279904,1734863442328,-500.0,0.00019725,2]
[346279905,1734863442337,-1122.75,0.00019725,2]
[346279906,1734863442346,-500.0,0.00019725,2]
[346279907,1734863442355,-982.94,0.00019725,2]
[346279909,1734863442364,-7888.81,0.00019725,2]
[346279912,1734863442373,-891.44,0.00019725,2]
[346279914,1734863442384,-582.91,0.00019725,2]
[346279916,1734863442393,-500.0,0.00019725,2]
[346279917,1734863442403,-500.0,0.00019725,2]
[346279919,1734863442412,-500.0,0.00019725,2]
[346279921,1734863442421,-721.07,0.00019725,2]
[346279922,1734863442430,-362.28875376,0.00019725,2]
[346279923,1734863442440,-19797.69,0.00019725,2]
[346279924,1734863442449,-500.0,0.00019725,2]
[346279925,1734863442459,-500.0,0.00019725,2]
[346279926,1734863442468,-500.0,0.00019725,2]
[346279927,1734863442478,-989.05,0.00019725,2]
[346279928,1734863442489,-500.0,0.00019725,2]
[346279929,1734863442498,-500.0,0.00019725,2]
[346279930,1734863442508,-1105.12,0.00019725,2]
[346279931,1734863442521,-691.73,0.00019725,2]
[346279932,1734863442531,-500.0,0.00019725,2]
[346279933,1734863442540,-5607.45,0.00019725,2]
[346279934,1734863442550,-500.0,0.00019725,2]
[346279935,1734863442560,-1008.65,0.00019725,2]
[346279936,1734863442570,-511.63496964,0.00019725,2]
[346279937,1734863442580,-500.0,0.00019725,2]
[346279938,1734863442589,-500.0,0.00019725,2]
[346279939,1734863442599,-1000.0,0.00019725,2]
[346279940,1734863442608,-639.58,0.00019725,2]
[346279941,1734863442618,-500.0,0.00019725,2]
[346279942,1734863442627,-500.0,0.00019725,2]
[346279943,1734863442638,-500.0,0.00019725,2]
[346279944,1734863442647,-500.0,0.00019725,2]
[346279945,1734863442657,-1088.07,0.00019725,2]
[346279946,1734863442666,-500.0,0.00019726,2]
[346279947,1734863442675,-1791.457,0.00019726,2]
[346279948,1734863442685,-165.415,0.00019726,2]
[346279949,1734863442694,-500.0,0.00019726,2]
[346279950,1734863442703,-500.0,0.00019726,2]
[346279951,1734863442713,-500.0,0.00019726,2]
[346279952,1734863442722,-500.0,0.00019726,2]
[346279953,1734863442732,-501.14,0.00019726,2]
[346279954,1734863442741,-500.0,0.00019726,2]
[346279955,1734863442750,-742.18,0.00019726,2]
[346279956,1734863442759,-500.0,0.00019726,2]
[346279957,1734863442768,-718.67,0.00019726,2]
[346279958,1734863442777,-587.84265214,0.00019726,2]
[346279959,1734863442787,-500.0,0.00019726,2]
[346279960,1734863442796,-500.0,0.00019726,2]
[346279961,1734863442806,-500.0,0.00019726,2]
[346279962,1734863442815,-500.0,0.00019726,2]
[346279963,1734863442825,-500.0,0.00019726,2]
[346279964,1734863442834,-273.545716,0.00019726,2]
[346279965,1734863442843,-500.0,0.00019726,2]
[346279966,1734863442853,-382.018238,0.00019726,2]
[346279967,1734863442862,-500.0,0.00019726,2]
[346279968,1734863442871,-500.0,0.00019726,2]
[346279969,1734863442881,-500.0,0.00019726,2]
[346279970,1734863442890,-500.0,0.00019726,2]
[346279971,1734863442899,-570.83,0.00019726,2]
[346279972,1734863442909,-500.0,0.00019726,2]
[346279973,1734863442918,-500.0,0.00019726,2]
[346279974,1734863442927,-500.0,0.00019726,2]
[346279975,1734863442937,-500.0,0.00019726,2]
[346279976,1734863442946,-500.0,0.00019726,2]
[346279977,1734863442956,-500.0,0.00019726,2]
[346279978,1734863442965,-500.0,0.00019726,2]
[346279979,1734863442974,-500.0,0.00019726,2]
[346279980,1734863442984,-500.0,0.00019726,2]
[346279981,1734863442993,-500.0,0.00019726,2]
[346279982,1734863443003,-500.0,0.00019726,2]
[346279983,1734863443012,-2607.3,0.00019726,2]
[346279984,1734863443022,-500.0,0.00019726,2]
[346279985,1734863443032,-1785.82,0.00019726,2]
[346279986,1734863443042,-510.21,0.00019726,2]
[346279987,1734863443051,-929.37,0.00019726,2]
[346279988,1734863443061,-764.34,0.00019726,2]
[346279989,1734863443070,-514.33,0.00019726,2]
[346279990,1734863443079,-500.0,0.00019726,2]
[346279991,1734863443088,-500.0,0.00019726,2]
[346279992,1734863443099,-8312.65,0.00019726,2]
[346279993,1734863443108,-533.68,0.00019726,2]
[346279994,1734863443118,-1059.68,0.00019726,2]
[346279995,1734863443297,-562.44,0.00019726,2]
[346279996,1734863443308,-151.917224,0.00019726,2]
[346279997,1734863443318,-500.0,0.00019726,2]
[346279998,1734863443328,-500.0,0.00019726,2]
[346279999,1734863443338,-500.0,0.00019726,2]
[346280000,1734863443348,-1082.01,0.00019726,2]
[346280001,1734863443358,-500.0,0.00019726,2]
[346280002,1734863443374,-500.0,0.00019726,2]
[346280003,1734863443386,-1595.23,0.00019726,2]
[346280004,1734863443396,-500.0,0.00019726,2]
[346280005,1734863443406,-500.0,0.00019726,2]
[346280006,1734863443416,-500.0,0.00019726,2]
[346280007,1734863443427,-500.0,0.00019726,2]
[346280008,1734863443437,-1005.11,0.00019726,2]
[346280009,1734863443447,-531.09,0.00019726,2]
[346280010,1734863443457,-882.22,0.00019726,2]
[346280011,1734863443467,-1250.09,0.00019726,2]
[346280012,1734863443478,-500.0,0.00019726,2]
[346280013,1734863443488,-500.0,0.00019726,2]
[346280014,1734863443498,-2003.81,0.00019726,2]
[346280015,1734863443508,-500.0,0.00019726,2]
[346280016,1734863443522,-5762.88,0.00019726,2]
[346280017,1734863443532,-694.53,0.00019726,2]
[346280018,1734863443542,-609.02,0.00019726,2]
[346280019,1734863443552,-500.0,0.00019726,2]
[346280020,1734863443562,-1241.35,0.00019726,2]
[346280021,1734863443572,-2200.19,0.00019726,2]
[346280022,1734863443582,-566.76,0.00019726,2]
[346280023,1734863443593,-2111.85,0.00019726,2]
[346280024,1734863443603,-2163.54,0.00019726,2]
[346280025,1734863443613,-2199.24,0.00019726,2]
[346280026,1734863443623,-500.0,0.00019726,2]
[346280027,1734863443634,-500.0,0.00019726,2]
[346280028,1734863443645,-500.0,0.00019726,2]
[346280029,1734863443655,-707.34,0.00019726,2]
[346280030,1734863443665,-5696.36,0.00019726,2]
[346280031,1734863443675,-499.58553078,0.00019726,2]
[346280032,1734863443685,-500.0,0.00019726,2]
[346280033,1734863443694,-554.96,0.00019726,2]
[346280034,1734863443704,-963.17,0.00019726,2]
[346280035,1734863443715,-8488.9,0.00019726,2]
[346280036,1734863443731,-1211.31,0.00019726,2]
[346280037,1734863443744,-500.0,0.00019726,2]
[346280038,1734863443755,-2065.92,0.00019726,2]
[346280039,1734863443767,-500.0,0.00019726,2]
[346280040,1734863443778,-500.0,0.00019726,2]
[346280041,1734863443788,-690.32,0.00019726,2]
[346280042,1734863443799,-1999.93,0.00019726,2]
[346280043,1734863443808,-1488.57,0.00019726,2]
[346280044,1734863443818,-500.0,0.00019726,2]
[346280045,1734863443828,-10800.92,0.00019726,2]
[346280046,1734863443838,-3003.35,0.00019726,2]
[346280047,1734863443849,-500.0,0.00019726,2]
[346280048,1734863443858,-500.0,0.00019726,2]
[346280049,1734863443869,-500.0,0.00019726,2]
[346280050,1734863443878,-622.41,0.00019726,2]
[346280051,1734863443888,-924.4,0.00019726,2]
[346280052,1734863443898,-2201.47,0.00019726,2]
[346280053,1734863443908,-833.05,0.00019726,2]
[346280054,1734863443918,-4207.57,0.00019726,2]
[346280055,1734863443928,-500.0,0.00019726,2]
[346280056,1734863443938,-500.0,0.00019726,2]
[346280057,1734863443948,-500.0,0.00019726,2]
[346280058,1734863443957,-500.0,0.00019726,2]
[346280059,1734863443967,-500.0,0.00019726,2]
[346280060,1734863443977,-2605.42,0.00019726,2]
[346280061,1734863443986,-3428.85,0.00019726,2]
[346280062,1734863443996,-500.0,0.00019726,2]
[346280063,1734863444006,-647.86,0.00019726,2]